bitfinex-derivatives/quotes_SOLF0:USTF0_20251211
["timestamp","ask_amount","ask_price","bid_price","bid_amount"]
[1765464488547,107.2887,130.48,130.39,3.24]
[1765464488941,6.8979,130.47,130.39,10.1415]
[1765464489250,6.8979,130.47,130.36,68.34]
[1765464489251,107.3207,130.44,130.36,68.34]
[1765464489438,107.3207,130.44,130.39,0.05176967]
[1765464489439,0.04850961,130.41,130.39,0.05176967]
[1765464490848,0.04850961,130.41,130.39,3.29176967]
[1765464491651,0.04850961,130.41,130.39,0.05176967]
[1765464494049,6.94950961,130.41,130.39,0.05176967]
[1765464494349,115.16274605,130.4,130.3,3.13]
[1765464494750,14.70914605,130.4,130.32,3.13]
[1765464495052,7.80764605,130.4,130.32,3.13]
[1765464495251,0.05567973,130.37,130.35,3.13]
[1765464495452,107.3098,130.46,130.36,3.13]
[1765464495651,115.10914605,130.47,130.37,3.13]
[1765464495852,107.3044,130.46,130.37,3.13]
[1765464496045,6.8989,130.45,130.39,6.9015]
[1765464496342,7.80764605,130.48,130.41,0.05023972]
[1765464496543,7.80764605,130.48,130.41,3.18023972]
[1765464496750,0.05030993,130.46,130.41,3.18023972]
[1765464497349,6.899,130.45,130.41,0.05023972]
[1765464497649,0.05030993,130.46,130.41,3.18023972]
[1765464498057,0.05030993,130.46,130.41,10.08073972]
[1765464498258,0.05030993,130.46,130.42,3.13]
[1765464499061,0.05030993,130.46,130.43,3.45]
[1765464500162,0.05030993,130.46,130.41,0.05023972]
[1765464500163,115.16785598,130.46,130.41,0.05023972]
[1765464500751,6.8996,130.44,130.41,0.05023972]
[1765464501359,6.8998,130.43,130.41,0.05023972]
[1765464501557,6.94956647,130.43,130.41,0.05023972]
[1765464502166,14.75721252,130.43,130.41,0.05023972]
[1765464503060,7.85741252,130.43,130.41,0.05023972]
[1765464503471,14.75721252,130.43,130.41,0.05023972]
[1765464504064,6.9007,130.42,130.37,3.45]
[1765464504269,7.85741252,130.43,130.37,3.45]
[1765464505865,14.70934605,130.4,130.37,3.45]
[1765464506062,7.85668239,130.4,130.36,3.45]
[1765464506865,7.85668239,130.4,130.33,3.45]
[1765464507066,0.05383594,130.38,130.31,3.45]
[1765464507272,7.80764605,130.37,130.31,3.45]
[1765464507568,0.04900449,130.35,130.32,3.45]
[1765464508176,107.4313,130.31,130.21,3.45]
[1765464508472,0.05195681,130.27,130.23,3.45]
[1765464508676,0.05195681,130.27,130.24,3.45]
[1765464508883,0.05195681,130.27,130.26,3.45]
[1765464509178,0.05195681,130.27,130.22,4.78561052]
[1765464509572,0.05195681,130.27,130.22,3.45]
[1765464509773,107.51495681,130.27,130.22,3.45]
[1765464509972,0.05195681,130.27,130.19,3.45]
[1765464510173,0.0556757,130.24,130.19,3.45]
[1765464510679,0.0556757,130.24,130.22,3.45]
[1765464510880,7.80764605,130.3,130.18,174.02388996]
[1765464510881,6.905,130.33,130.26,10.3584]
[1765464511179,107.4059,130.34,130.26,3.45]
[1765464511368,107.3818,130.37,130.26,3.45]
[1765464511369,7.80764605,130.32,130.26,3.45]
[1765464511977,0.05373,130.3,130.28,10.41510709]
[1765464512177,0.05228938,130.3,130.29,3.45]
[1765464512881,0.05228938,130.3,130.28,0.05564368]
[1765464513870,109.02808938,130.3,130.21,3.45]
[1765464514074,115.23844605,130.31,130.21,3.45]
[1765464514983,0.05065756,130.27,130.22,3.45]
[1765464515279,0.05065756,130.27,130.2,3.45]
[1765464515485,0.05342213,130.25,130.2,3.45]
[1765464515987,0.05342213,130.25,130.22,3.45]
[1765464516283,0.05342213,130.25,130.21,3.45]
[1765464518382,0.05342213,130.25,130.23,3.45]
[1765464518687,6.9069,130.3,130.23,3.45]
[1765464519485,7.80764605,130.32,130.22,107.4982]
[1765464519486,0.05376436,130.28,130.26,3.45]
[1765464519782,107.50926436,130.28,130.19,3.45]
[1765464519980,107.4555,130.28,130.19,3.45]
[1765464520183,115.28064605,130.26,130.19,3.45]
[1765464520788,0.05382072,130.24,130.19,3.45]
[1765464521184,7.80764605,130.23,130.18,65.2]
[1765464521388,7.80764605,130.23,130.18,68.65]
[1765464521588,6.9109,130.22,130.18,68.65]
[1765464521785,0.05489278,130.21,130.18,68.65]
[1765464522179,0.05489278,130.21,130.19,3.45]
[1765464523686,107.442,130.3,130.21,3.45]
[1765464524387,6.9088,130.26,130.21,3.45]
[1765464524592,107.4629,130.27,130.21,3.45]
[1765464524792,0.04926574,130.25,130.23,0.04905391]
[1765464524988,0.04926574,130.25,130.23,3.49905391]
[1765464525982,107.4194,130.32,130.24,3.45]
[1765464526393,6.9074,130.29,130.24,3.45]
[1765464526695,115.23624605,130.31,130.24,3.45]
[1765464526893,7.80764605,130.31,130.25,3.45]
[1765464527088,0.05248103,130.29,130.27,3.45]
[1765464527393,0.05248103,130.29,130.27,3.50343751]
[1765464527603,0.05248103,130.29,130.27,0.05343751]
[1765464528191,6.95978103,130.29,130.27,0.05343751]
[1765464528790,6.9095,130.25,130.23,68.67]
[1765464529092,107.4662,130.27,130.2,3.16]
[1765464529294,107.4774,130.25,130.17,3.16]
[1765464529490,107.4774,130.25,130.19,3.16]
[1765464529895,0.05603572,130.23,130.21,0.05847377]
[1765464530191,6.911,130.22,130.21,0.05847377]
[1765464531094,6.9125,130.19,130.16,3.16]
[1765464531303,107.4895,130.24,130.16,3.16]
[1765464531796,6.9115,130.21,130.17,3.16]
[1765464532294,0.05205045,130.2,130.14,1.33635421]
[1765464532494,0.05205045,130.2,130.14,4.49635421]
[1765464532888,6.9125,130.19,130.15,3.16]
[1765464533086,0.05499989,130.18,130.12,1.33658518]
[1765464533393,0.05499989,130.18,130.11,68.4]
[1765464533594,6.9147,130.15,130.12,3.16]
[1765464533791,0.05473468,130.15,130.12,3.16]
[1765464534393,172.7374,130.23,130.13,3.16]
[1765464534599,6.9125,130.19,130.13,10.0754]
[1765464535291,107.5285,130.19,130.13,3.16]
[1765464535598,0.05607414,130.17,130.15,0.05851895]
[1765464535800,6.96977414,130.17,130.15,0.05851895]
[1765464537297,0.05607414,130.17,130.15,3.21851895]
[1765464537486,107.4881,130.24,130.15,3.21851895]
[1765464537691,107.5075,130.22,130.12,3.16]
[1765464538391,119.79485825,130.24,130.15,3.16]
[1765464538594,0.051719,130.21,130.18,0.05901781]
[1765464539192,6.9119,130.2,130.18,0.05901781]
[1765464539801,6.9119,130.2,130.18,3.21901781]
[1765464540100,0.051719,130.21,130.18,3.21901781]
[1765464540496,0.051719,130.21,130.18,0.05901781]
[1765464540696,0.051719,130.21,130.18,3.21901781]
[1765464541994,107.4561,130.28,130.18,3.21901781]
[1765464542198,107.4316,130.31,130.22,3.16]
[1765464542406,107.4316,130.31,130.2,107.5119]
[1765464542407,6.9073,130.29,130.24,3.16]
[1765464542595,107.4526,130.28,130.21,3.16]
[1765464542800,107.4446,130.29,130.21,3.16]
[1765464543105,6.96498121,130.26,130.24,0.05304477]
[1765464544890,0.05618121,130.26,130.24,3.21304477]
[1765464545494,0.05618121,130.26,130.24,0.05304477]
[1765464545800,0.05618121,130.26,130.24,3.21304477]
[1765464545992,6.96498121,130.26,130.24,3.21304477]
[1765464546799,0.05618121,130.26,130.24,3.21304477]
[1765464547188,0.05618121,130.26,130.24,0.05304477]
[1765464547805,6.96498121,130.26,130.24,0.05304477]
[1765464548099,107.4783,130.25,130.17,3.16]
[1765464548299,107.4783,130.25,130.14,10.0747]
[1765464548300,107.4965,130.23,130.14,10.0747]
[1765464548498,107.4965,130.23,130.15,3.16]
[1765464548704,107.4868,130.24,130.15,3.16]
[1765464548902,6.9129,130.19,130.12,3.16]
[1765464549099,0.04848116,130.17,130.14,3.21016657]
[1765464549301,0.05389053,130.17,130.14,3.21058531]
[1765464549603,0.05389053,130.17,130.14,0.05058531]
[1765464549806,107.56,130.15,130.07,99.62856803]
[1765464550099,12.30675825,130.18,130.09,3.16]
[1765464550296,107.5325,130.19,130.1,3.16]
[1765464550489,107.5433,130.17,130.1,3.16]
[1765464550693,107.5376,130.18,130.1,3.16]
[1765464550898,0.05821199,130.15,130.12,3.21087159]
[1765464551098,107.521,130.2,130.13,3.16]
[1765464551309,107.5356,130.18,130.1,3.16]
[1765464551602,107.5197,130.2,130.12,3.16]
[1765464551803,107.5109,130.21,130.12,3.16]
[1765464552005,107.5005,130.23,130.15,3.16]
[1765464552203,0.0565387,130.18,130.15,3.16]
[1765464552498,0.0565387,130.18,130.15,3.21514818]
[1765464553504,65.26,130.26,130.17,3.37]
[1765464553694,107.4614,130.27,130.19,3.37]
[1765464553998,107.4581,130.28,130.19,3.37]
[1765464554194,113.39420386,130.27,130.19,3.37]
[1765464554500,0.0553109,130.24,130.22,0.05053566]
[1765464554692,0.0553109,130.24,130.22,3.42053566]
[1765464555403,172.6849,130.32,130.22,110.91883566]
[1765464555604,107.392,130.36,130.26,3.37]
[1765464555906,5.93506974,130.35,130.27,3.37]
[1765464556107,113.34036974,130.34,130.27,3.37]
[1765464556297,0.05578027,130.32,130.29,0.05851819]
[1765464556903,6.9062,130.31,130.29,0.05851819]
[1765464557502,0.05578027,130.32,130.29,3.42851819]
[1765464557795,0.05578027,130.32,130.29,0.05851819]
[1765464558206,0.05578027,130.32,130.29,3.42851819]
[1765464559498,107.4276,130.31,130.29,0.05851819]
[1765464559902,114.3339,130.31,130.29,0.05851819]
[1765464560103,6.9065,130.31,130.29,0.05851819]
[1765464560704,114.335,130.31,130.29,0.05851819]
[1765464560903,6.9065,130.31,130.29,0.05851819]
[1765464561108,6.9065,130.31,130.29,3.40851819]
[1765464561305,6.9065,130.31,130.29,0.05851819]
[1765464561708,0.05578027,130.32,130.29,0.05851819]
[1765464561908,0.05578027,130.32,130.29,3.40851819]
[1765464563303,107.3651,130.39,130.29,3.40851819]
[1765464563613,107.3453,130.41,130.32,3.35]
[1765464563910,107.3131,130.45,130.36,3.35]
[1765464564105,107.3131,130.45,130.34,107.3992]
[1765464564106,107.3131,130.45,130.38,3.35]
[1765464564509,0.04935298,130.43,130.4,3.4075722]
[1765464565908,107.3047,130.46,130.4,3.4075722]
[1765464566109,107.3116,130.46,130.42,3.35]
[1765464566314,6.8995,130.44,130.42,3.35]
[1765464566611,107.2722,130.5,130.42,3.35]
[1765464566804,107.2671,130.51,130.45,3.39970802]
[1765464566805,0.05035239,130.47,130.45,3.39970802]
[1765464567801,6.94815239,130.47,130.45,0.04970802]
[1765464568118,0.05035239,130.47,130.45,0.04970802]
[1765464568408,114.24465239,130.47,130.45,0.04970802]
[1765464568608,0.05035239,130.47,130.45,3.39970802]
[1765464570611,0.05035239,130.47,130.45,0.04970802]
[1765464570817,107.34665239,130.47,130.45,0.04970802]
[1765464571314,0.05035239,130.47,130.45,3.39970802]
[1765464572022,107.34665239,130.47,130.45,0.04970802]
[1765464572208,0.05035239,130.47,130.45,0.04970802]
[1765464572510,0.05035239,130.47,130.45,3.39970802]
[1765464574516,107.2114,130.58,130.45,4.93970802]
[1765464574812,6.8942,130.54,130.48,3.35]
[1765464575407,107.1779,130.62,130.52,3.35]
[1765464575613,119.47485825,130.63,130.54,3.35]
[1765464575909,6.8909,130.6,130.54,3.35]
[1765464576208,107.1842,130.61,130.54,3.35]
[1765464576418,107.1974,130.59,130.48,3.35]
[1765464576609,107.1974,130.59,130.5,3.35]
[1765464576811,0.05882756,130.55,130.52,0.05697602]
[1765464577117,0.05882756,130.55,130.52,3.40697602]
[1765464578920,107.1818,130.61,130.52,3.40697602]
[1765464579120,107.1818,130.61,130.52,3.35]
[1765464579422,107.1697,130.63,130.54,3.35]
[1765464579609,107.1533,130.65,130.54,3.35]
[1765464579610,107.1533,130.65,130.55,3.35]
[1765464579813,0.05004691,130.61,130.59,3.40778344]
[1765464580511,12.30675825,130.69,130.59,3.40778344]
[1765464580713,119.42495825,130.69,130.59,3.35]
[1765464580913,119.42495825,130.69,130.6,65.14]
[1765464581115,107.1316,130.67,130.6,68.49]
[1765464581520,107.1234,130.68,130.6,68.49]
[1765464581715,0.05700499,130.65,130.62,3.40435105]
[1765464581916,12.30675825,130.63,130.45,3.35]
[1765464582114,6.892,130.58,130.51,3.35]
[1765464582409,107.1745,130.62,130.52,3.35]
[1765464582621,107.1535,130.65,130.57,3.35]
[1765464582810,6.8894,130.63,130.57,3.35]
[1765464583013,107.1486,130.65,130.57,3.35]
[1765464583417,107.1407,130.66,130.57,10.2419]
[1765464583617,0.0550596,130.62,130.6,0.05347134]
[1765464584024,107.2282596,130.62,130.6,0.05347134]
[1765464584518,107.1902,130.6,130.53,3.35]
[1765464584923,6.8909,130.6,130.53,3.35]
[1765464585125,6.8909,130.6,130.51,65.12]
[1765464585126,107.2077,130.58,130.51,65.12]
[1765464585320,107.2464,130.53,130.49,3.35]
[1765464585517,107.2332,130.55,130.49,3.35]
[1765464585722,0.05316338,130.52,130.5,0.05351952]
[1765464589327,107.2658,130.51,130.45,3.35]
[1765464589527,107.2713,130.5,130.44,65.12]
[1765464589726,107.2721,130.5,130.41,3.2]
[1765464590322,0.05156788,130.47,130.44,0.05836147]
[1765464590927,0.05156788,130.47,130.44,3.25836147]
[1765464591634,0.05156788,130.47,130.46,3.2]
[1765464591931,0.05156788,130.47,130.45,10.0983]
[1765464592333,0.05156788,130.47,130.44,3.25836147]
[1765464592732,0.05156788,130.47,130.44,110.57786147]
[1765464592928,0.05156788,130.47,130.45,3.2]
[1765464593329,6.8941,130.54,130.45,3.2]
[1765464593524,14.72443357,130.54,130.45,3.2]
[1765464594436,7.88755457,130.51,130.48,0.05175464]
[1765464595536,14.78325457,130.51,130.48,0.05175464]
[1765464596128,107.2721,130.5,130.42,10.1]
[1765464596329,7.83033357,130.48,130.43,3.2]
[1765464596831,7.83033357,130.45,130.39,68.32]
[1765464597238,0.04963057,130.43,130.41,0.05217454]
[1765464597533,7.83033357,130.42,130.41,0.05217454]
[1765464597735,0.04963057,130.43,130.41,0.05217454]
[1765464597931,0.04963057,130.43,130.41,3.25217454]
[1765464598841,107.2439,130.54,130.43,3.2]
[1765464599038,107.2711,130.5,130.41,65.12]
[1765464599243,7.83033357,130.49,130.42,3.2]
[1765464599544,7.83033357,130.49,130.43,10.0995]
[1765464599730,115.11243357,130.49,130.43,3.2]
[1765464600243,107.3241,130.44,130.33,110.6048]
[1765464600429,7.83033357,130.41,130.36,3.2]
[1765464600626,6.8998,130.43,130.38,6.9022]
[1765464600940,7.83033357,130.44,130.35,3.2]
[1765464601337,0.05025304,130.41,130.38,0.05531163]
[1765464601533,0.05025304,130.41,130.38,3.25531163]
[1765464601739,7.88058661,130.41,130.38,0.05531163]
[1765464602335,6.9015,130.4,130.38,0.05531163]
[1765464602542,6.9015,130.4,130.38,0.00355699]
[1765464602936,115.22658661,130.41,130.32,65.12]
[1765464603141,7.83033357,130.36,130.28,172.5864]
[1765464603338,115.25303357,130.32,130.24,3.2]
[1765464603529,7.83033357,130.29,130.23,10.1102]
[1765464603733,107.4227,130.32,130.24,3.2]
[1765464604034,0.05181875,130.29,130.27,0.04934182]
[1765464604230,115.29043357,130.28,130.19,65.14]
[1765464604434,7.83033357,130.22,130.12,110.7834]
[1765464604743,7.83033357,130.21,130.14,3.2]
[1765464605132,122.25453357,130.21,130.14,3.2]
[1765464605334,107.5293,130.19,130.11,65.14]
[1765464605529,107.5464,130.17,130.1,3.2]
[1765464605731,107.5541,130.16,130.07,8.92571813]
[1765464605929,107.5155,130.21,130.12,3.2]
[1765464606137,7.83033357,130.23,130.15,3.2]
[1765464606435,115.29923357,130.26,130.16,107.5457]
[1765464606634,0.05285424,130.22,130.2,0.05638646]
[1765464607530,107.55945424,130.22,130.2,0.05638646]
[1765464607730,6.96415424,130.22,130.14,3.2]
[1765464607939,115.32483357,130.23,130.14,3.2]
[1765464608136,107.4895,130.24,130.13,107.5751]
[1765464608330,107.4895,130.24,130.13,110.7724]
[1765464608641,0.05850099,130.2,130.18,3.2]
[1765464608835,0.0564499,130.2,130.19,3.2]
[1765464609036,107.458,130.28,130.19,3.2]
[1765464609037,107.4553,130.28,130.19,3.2]
[1765464609241,114.3791,130.26,130.17,6.913]
[1765464609440,7.83033357,130.24,130.16,68.38]
[1765464609635,7.83033357,130.21,130.12,3.2]
[1765464609836,115.34343357,130.21,130.13,3.2]
[1765464610036,115.34343357,130.21,130.16,0.05624481]
[1765464610037,0.05069135,130.18,130.16,0.05624481]
[1765464610244,0.05069135,130.18,130.16,3.25624481]
[1765464610746,7.83033357,130.32,130.16,3.25624481]
[1765464610747,115.27533357,130.29,130.19,110.7256]
[1765464610942,7.83033357,130.29,130.2,3.2]
[1765464611140,14.73753357,130.29,130.21,3.2]
[1765464611442,7.83033357,130.29,130.21,110.7072]
[1765464611646,0.05726237,130.26,130.24,0.04904363]
[1765464611845,7.88759594,130.26,130.24,0.04904363]
[1765464612242,115.35929594,130.26,130.17,68.4]
[1765464612444,7.83033357,130.23,130.17,65.2]
[1765464612649,122.23653357,130.23,130.17,65.2]
[1765464612835,114.4062,130.23,130.17,65.2]
[1765464613039,115.31633357,130.24,130.16,3.2]
[1765464613243,107.4504,130.29,130.19,3.2]
[1765464613541,0.0559574,130.25,130.23,3.25421027]
[1765464613745,0.0559574,130.25,130.23,0.05421027]
[1765464614139,0.0559574,130.25,130.23,3.25421027]
[1765464614543,7.83033357,130.32,130.23,3.25421027]
[1765464614752,7.83033357,130.32,130.21,110.7092]
[1765464615053,7.83033357,130.32,130.23,110.6874]
[1765464615248,107.4381,130.3,130.23,3.2]
[1765464615443,7.83033357,130.29,130.23,3.2]
[1765464615640,0.05791332,130.27,130.25,0.05429408]
[1765464615947,0.05057848,130.27,130.25,0.05429408]
[1765464616648,0.05057848,130.27,130.25,3.25429408]
[1765464617339,0.05057848,130.27,130.25,0.05429408]
[1765464617746,115.34181205,130.27,130.25,0.05429408]
[1765464617943,115.34181205,130.27,130.19,65.22]
[1765464618143,122.22803357,130.24,130.17,3.2]
[1765464618345,7.83033357,130.24,130.17,3.2]
[1765464618547,107.4658,130.27,130.17,3.2]
[1765464618548,107.4694,130.26,130.17,3.2]
[1765464618845,6.9097,130.25,130.17,10.1131]
[1765464619047,0.05621397,130.23,130.2,0.05217204]
[1765464620352,107.55051397,130.23,130.2,0.05217204]
[1765464620551,107.5021,130.22,130.2,0.05217204]
[1765464621054,6.9111,130.22,130.2,0.05217204]
[1765464621251,107.5265,130.19,130.09,3.2]
[1765464621450,6.9137,130.17,130.1,3.2]
[1765464621641,115.37293357,130.18,130.07,8.92571813]
[1765464621642,107.5599,130.15,130.07,8.92571813]
[1765464621845,7.83033357,130.18,130.09,110.8077]
[1765464622149,6.9126,130.19,130.12,3.2]
[1765464622349,0.05261724,130.17,130.15,3.2]
[1765464622553,0.05261724,130.17,130.14,0.05052111]
[1765464623342,107.5723,130.14,130.07,8.92571813]
[1765464623551,107.5769,130.13,130.07,8.92571813]
[1765464623753,107.5769,130.13,130.07,7.58856803]
[1765464623950,6.9169,130.11,130.07,7.58856803]
[1765464624148,6.9169,130.11,130.08,3.2]
[1765464624363,0.05116241,130.11,130.08,3.24868663]
[1765464624658,6.9147,130.15,130.08,3.24868663]
[1765464624951,115.36333357,130.19,130.1,3.2]
[1765464624952,107.533,130.19,130.1,3.2]
[1765464625256,107.5647,130.15,130.07,12.2189016]
[1765464625449,107.5687,130.14,130.07,4.38856803]
[1765464625649,0.05206382,130.12,130.09,0.05799008]
[1765464625960,0.05206382,130.12,130.09,3.25799008]
[1765464626756,0.05206382,130.12,130.1,3.2]
[1765464627162,115.36383357,130.19,130.1,3.2]
[1765464627348,107.5431,130.17,130.1,3.2]
[1765464628163,0.05321042,130.15,130.13,3.2]
[1765464629061,115.33793357,130.22,130.13,3.2]
[1765464629357,107.52,130.2,130.13,3.2]
[1765464629654,6.9142,130.16,130.13,3.2]
[1765464629967,107.5597,130.15,130.08,3.2]
[1765464630265,0.0527402,130.13,130.1,0.0576629]
[1765464630657,0.0527402,130.13,130.1,3.2576629]
[1765464631556,0.0527402,130.13,130.11,3.2]
[1765464631752,0.0527402,130.13,130.1,0.0576629]
[1765464632254,6.9685402,130.13,130.1,0.0576629]
[1765464632560,6.9164,130.12,130.1,0.0576629]
[1765464633361,0.0527402,130.13,130.1,0.0576629]
[1765464633555,107.6325402,130.13,130.1,0.0576629]
[1765464633954,6.9162,130.12,130.1,0.0576629]
[1765464635653,7.83033357,130.11,130.03,3.2]
[1765464635855,107.626,130.07,129.99,3.2]
[1765464636157,7.83033357,130.09,130.01,3.2]
[1765464636756,0.05313092,130.06,130.04,0.05237159]
[1765464636955,7.88346449,130.06,129.97,3.2]
[1765464637163,7.83033357,130.06,129.99,3.2]
[1765464638065,0.05753955,130.04,130.01,3.25069087]
[1765464638369,0.05753955,130.04,130.02,3.2]
[1765464638664,6.9212,130.03,130.01,0.05069087]
[1765464638963,0.05753955,130.04,130.01,3.25069087]
[1765464639952,7.88787312,130.04,130.01,0.05069087]
[1765464640158,0.05753955,130.04,130.01,0.05069087]
[1765464640353,6.921,130.03,130.01,0.05069087]
[1765464641165,6.922,130.01,129.97,3.2]
[1765464641358,7.83033357,130.03,129.97,3.2]
[1765464641663,7.83033357,130.03,129.93,3.2]
[1765464641664,115.49913357,130.02,129.93,3.2]
[1765464641859,6.9227,130.0,129.93,10.1259]
[1765464642061,6.9227,130.0,129.94,3.2]
[1765464642062,107.6837,130.0,129.94,3.2]
[1765464642368,114.6791613,129.98,129.96,0.05000435]
[1765464643372,114.6791613,129.98,129.87,107.7882]
[1765464643373,107.7424,129.93,129.87,3.2]
[1765464643564,107.7334,129.94,129.87,3.2]
[1765464643870,107.7503,129.92,129.87,3.2]
[1765464644060,107.7753,129.89,129.83,3.2]
[1765464644362,0.05214709,129.87,129.85,3.25596672]
[1765464644564,107.7264,129.95,129.85,3.25596672]
[1765464644864,114.6892,129.91,129.82,10.1319]
[1765464645061,107.7616,129.91,129.82,3.2]
[1765464645261,115.60123357,129.9,129.82,3.2]
[1765464645469,0.05594093,129.87,129.85,0.05641485]
[1765464646365,107.85124093,129.87,129.85,0.05641485]
[1765464646665,0.05594093,129.87,129.85,0.05641485]
[1765464646865,0.05594093,129.87,129.85,3.25641485]
[1765464647166,0.05594093,129.87,129.85,0.05641485]
[1765464647366,0.05594093,129.87,129.85,3.25641485]
[1765464647566,115.6814745,129.87,129.77,3.2]
[1765464647761,107.8361,129.82,129.74,3.2]
[1765464647964,107.8603,129.79,129.74,3.2]
[1765464648166,107.8412,129.81,129.74,3.2]
[1765464648364,107.8131,129.85,129.75,111.0907]
[1765464648568,107.8345,129.82,129.76,3.2]
[1765464648871,6.98254976,129.81,129.79,0.05860586]
[1765464649075,0.04954976,129.81,129.8,3.35]
[1765464649260,107.7804,129.89,129.8,3.35]
[1765464649459,107.7491,129.93,129.83,111.171]
[1765464649674,107.7491,129.93,129.84,68.71]
[1765464649872,114.6559,129.95,129.86,3.35]
[1765464650068,7.83033357,129.95,129.86,3.35]
[1765464650275,0.05114722,129.92,129.89,3.39961047]
[1765464650776,107.6974,129.99,129.89,176.55271047]
[1765464651069,65.38,130.02,129.92,3.35]
[1765464651070,122.43683357,130.0,129.92,3.35]
[1765464651262,6.9226,130.0,129.92,3.35]
[1765464651763,6.9226,130.0,129.95,0.05783153]
[1765464651966,0.04848905,129.97,129.95,0.05783153]
[1765464653280,12.36427372,130.04,129.95,3.40783153]
[1765464653480,6.9219,130.02,129.95,3.35]
[1765464653866,107.6922,129.99,129.9,68.75]
[1765464654093,107.6676,130.02,129.93,3.35]
[1765464654094,107.668,130.02,129.93,3.35]
[1765464654384,0.05738649,129.99,129.96,3.39992825]
[1765464654974,119.99347372,130.07,129.97,3.35]
[1765464655181,173.0138,130.09,129.99,107.6892]
[1765464655383,107.6223,130.08,130.0,3.35]
[1765464655581,107.6138,130.09,130.01,3.35]
[1765464655778,6.9186,130.08,130.01,3.35]
[1765464655973,119.95977372,130.11,130.01,3.35]
[1765464656179,107.6186,130.08,130.01,3.35]
[1765464656371,0.05842922,130.07,130.05,0.05180928]
[1765464656888,107.68602922,130.07,130.05,0.05180928]
[1765464657082,114.60512922,130.07,130.05,0.05180928]
[1765464658280,6.9209,130.03,129.97,3.35]
[1765464658686,114.5904,130.02,129.97,3.35]
[1765464658886,6.9219,130.02,129.97,3.35]
[1765464659382,0.05276689,130.01,129.98,0.04867408]
[1765464659582,0.05276689,130.01,129.98,3.39867408]
[1765464660182,0.05276689,130.01,129.98,0.04867408]
[1765464660378,107.6221,130.08,129.99,3.35]
[1765464660687,114.5297,130.09,130.01,3.35]
[1765464660877,107.6178,130.08,130.01,3.35]
[1765464661479,0.04878403,130.06,130.03,0.04972445]
[1765464661783,0.04878403,130.06,130.03,3.39972445]
[1765464661985,119.93857372,130.14,130.03,3.39972445]
[1765464662189,107.6095,130.09,129.99,10.2728]
[1765464662486,107.6187,130.08,129.99,3.35]
[1765464662688,185.33977372,130.11,130.02,3.35]
[1765464662892,6.9178,130.09,130.02,3.35]
[1765464663092,107.68514068,130.07,130.04,0.05590534]
[1765464663290,107.6366,130.06,130.04,0.05590534]
[1765464663491,6.97744068,130.07,130.04,0.05590534]
[1765464664183,114.5543,130.06,130.04,0.05590534]
[1765464664490,0.05834068,130.07,130.04,0.05590534]
[1765464664791,0.05834068,130.07,130.04,3.40590534]
[1765464665288,0.05834068,130.07,130.04,0.05590534]
[1765464665487,114.5542,130.06,130.04,0.05590534]
[1765464665695,6.9197,130.06,130.04,0.05590534]
[1765464666087,114.5547,130.06,130.04,0.05590534]
[1765464666486,107.6671,130.02,129.95,3.35]
[1765464666986,107.6865,130.0,129.89,120.13337372]
[1765464667193,107.6932,129.99,129.91,3.35]
[1765464667396,107.7005,129.98,129.91,3.35]
[1765464667594,0.05692125,129.96,129.94,0.05495969]
[1765464668389,0.05692125,129.96,129.94,3.40495969]
[1765464668589,0.05692125,129.96,129.94,0.05495969]
[1765464669607,0.05692125,129.96,129.94,3.40495969]
[1765464669901,107.6544,130.04,129.95,3.35]
[1765464670110,107.6318,130.07,129.97,3.35]
[1765464670404,12.36427372,130.09,130.0,111.0311]
[1765464670606,12.36427372,130.13,130.03,3.35]
[1765464670817,107.5568,130.16,130.07,3.35]
[1765464670995,107.5383,130.18,130.09,3.35]
[1765464671201,107.5344,130.19,130.1,3.35]
[1765464671408,0.05620294,130.16,130.13,3.40736704]